lending/lending_fUSD_20251106
["ID","MTS","AMOUNT","RATE_DAILY","PERIOD"]
[393267563,1762405837235,-571.0,0.00017786,2]
[393267564,1762405837244,-500.0,0.00017786,2]
[393267565,1762405837253,-2500.0,0.00017794,3]
[393267566,1762405837263,-202.458185,0.00017796,3]
[393267567,1762405837272,-228.999142,0.00017796,3]
[393267568,1762405837282,-500.0,0.00017799,2]
[393267569,1762405837292,-500.0,0.00017799,2]
[393267570,1762405837301,-28411.31663485,0.000178,2]
[393267577,1762405838299,-151.0,0.000172,2]
[393267578,1762405838311,-151.0,0.000172,2]
[393267579,1762405838321,-198.0,0.00017206,2]
[393267612,1762405840669,-1.7e-07,0.000172,2]
[393267613,1762405840694,-150.99999983,0.000172,2]
[393267615,1762405840703,-151.0,0.000172,2]
[393267616,1762405840712,-157.712421,0.000172,2]
[393267617,1762405840722,-507.66757917,0.00017206,2]
[393267648,1762405843300,-151.0,0.000172,2]
[393267649,1762405843310,-151.0,0.000172,2]
[393267650,1762405843320,-154.098573,0.000172,2]
[393267651,1762405843329,-605.76890676,0.00017206,2]
[393267654,1762405843515,-5163.56351407,0.00017206,2]
[393267655,1762405843526,-15917.35864593,0.000178,2]
[393267656,1762405843572,-500.0,0.000178,2]
[393267659,1762405846339,-158.096626,0.000172,2]
[393267660,1762405846348,-151.0,0.000172,2]
[393267661,1762405846357,-135.01482375,0.000172,2]
[393267662,1762405846612,-329.03631125,0.000172,2]
[393267663,1762405846622,-28386.62663818,0.000178,2]
[393267664,1762405859974,500.0,0.0001497,2]
[393267665,1762405860016,500.0,0.0001497,2]
[393267666,1762405860066,163.87841254,0.0001497,2]
[393267667,1762405861222,200.0,0.00038561,30]
[393267668,1762405890674,164.03563571,0.00038561,120]
[393267669,1762405930822,151.0,0.00038561,120]
[393267674,1762406162955,200.0,0.00038561,30]
[393267676,1762406211648,937.93,0.00013699,2]
[393267679,1762406518638,500.0,0.0003856,120]
[393267680,1762406518936,500.0,0.0003856,120]
[393267681,1762406519384,398.69707275,0.0003856,120]
[393267682,1762406630944,3000.0,0.0003856,120]
[393267683,1762406693213,447.49,8.253e-05,2]
[393267684,1762406693413,447.49,8.671e-05,2]
[393267685,1762406693600,447.49,9.088e-05,2]
[393267686,1762406693799,447.49,9.505e-05,2]
[393267687,1762406694001,447.49,9.923e-05,2]
[393267688,1762406694200,447.49,0.0001034,2]
[393267689,1762406694393,447.49,0.00010757,2]
[393267690,1762406694601,447.49,0.00011175,2]
[393267691,1762406694814,447.49,0.00011592,2]
[393267692,1762406695016,447.49,0.00012009,2]
[393267693,1762406695393,447.49,0.00012427,2]
[393267694,1762406695420,447.49,0.00012844,2]
[393267695,1762406695623,447.49,0.00013261,2]
[393267696,1762406695842,447.49,0.00013679,2]
[393267697,1762406696037,447.49,0.00014096,2]
[393267698,1762406696242,447.49,0.00014513,2]
[393267699,1762406696435,447.49,0.00014931,2]
[393267700,1762406696638,447.49,0.00015348,2]
[393267701,1762406715051,-250.0,0.00015415,2]
[393267703,1762406760759,8807.2841802,8e-05,2]
[393267704,1762406815369,692.7258198,0.00015398,2]
[393267705,1762406815390,1807.2741802,0.00015398,2]
[393267707,1762406915511,198.54973038,0.00015415,2]
[393267708,1762406916222,151.0,0.00015415,2]
[393267710,1762406949010,3855.41428701,0.00015407,2]
[393267711,1762406965107,176.22,0.00012832,2]
[393267712,1762406983102,175.55618239,0.00015407,2]
[393267754,1762407032452,-176.0,0.00015496,2]
[393267756,1762407032462,-300.0,0.00015496,2]
[393267758,1762407032471,-353.93939288,0.00015497,2]
[393267761,1762407032480,-153.57814102,0.00015497,2]
[393267763,1762407032490,-500.0,0.00015497,2]
[393267765,1762407032499,-500.0,0.00015497,2]
[393267767,1762407032509,-406.01654555,0.00015497,2]
[393267769,1762407032519,-532.06905087,0.00015497,2]
[393267771,1762407032529,-500.0,0.00015497,2]
[393267773,1762407032538,-159880.85701381,0.00015498,2]
[393267775,1762407032549,-57571.59675722,0.00015498,2]
[393267777,1762407032559,-50731.14669874,0.00015498,2]
[393267779,1762407032570,-973.419999,0.00015498,2]
[393267783,1762407032585,-19054.80504289,0.00015498,2]
[393267819,1762407043394,-314.85000006,0.00015498,2]
[393267820,1762407043507,-368.14700699,0.00015498,2]
[393267821,1762407043682,-11716.4336,0.00015498,2]
[393267838,1762407046536,-1127.3,0.00015498,2]
[393267847,1762407081652,1900.0,0.00038561,40]
[393267850,1762407284267,662.2621629,0.00015398,2]
[393267851,1762407343400,10000.0,0.00015,2]
[393267852,1762407380494,13851.9,0.00038561,120]
[393267853,1762407380750,13851.9,0.00038561,120]
[393267854,1762407381027,13851.9,0.00038561,120]
[393267855,1762407381271,13851.9,0.00038561,120]
[393267856,1762407381541,13851.9,0.00038561,120]
[393267857,1762407381832,13851.9,0.00038561,120]
[393267858,1762407382086,13851.9,0.00038561,120]
[393267859,1762407382363,13851.9,0.00038561,120]
[393267860,1762407382622,13851.9,0.00038561,120]
[393267861,1762407382876,13851.9,0.00038561,120]
[393267862,1762407383143,13851.9,0.00038561,120]
[393267863,1762407383423,13851.9,0.00038561,120]
[393267864,1762407383684,13851.9,0.00038561,120]
[393267865,1762407383947,13851.9,0.00038561,120]
[393267866,1762407384226,13851.9,0.00038561,120]
[393267867,1762407384523,13851.9,0.00038561,120]
[393267868,1762407384991,13851.9,0.00038561,120]
[393267869,1762407385075,13851.9,0.00038561,120]
[393267870,1762407385368,13851.9,0.00038561,120]
[393267871,1762407385615,13851.9,0.00038561,120]
[393267872,1762407385858,13851.9,0.00038561,120]
[393267873,1762407386118,13851.9,0.00038561,120]
[393267874,1762407386408,13851.9,0.00038561,120]
[393267875,1762407386681,13851.97718649,0.00038561,120]
[393267876,1762407389978,760.69,0.00015405,2]
[393267877,1762407470273,500.0,0.00015425,2]
[393267878,1762407476856,4259.65,0.00015414,2]
[393267879,1762407478318,3000.0,0.00038561,120]
[393267880,1762407551514,151.0,0.00015445,2]
[393267881,1762407568450,151.0,0.00015433,2]
[393267882,1762407585919,151.0,0.00015423,2]
[393267883,1762407586979,273.34,0.00015267,2]
[393267884,1762407591383,187.930696,0.00015372,2]
[393267885,1762407602395,151.0,0.00015411,2]
[393267886,1762407613257,180.07,0.00015313,2]
[393267887,1762407618589,151.0,0.00015404,2]
[393267888,1762407926092,-221.80400124,0.00015144,2]
[393267889,1762407986755,-388.19222594,0.00015156,2]
[393267919,1762408062271,-221.80777406,0.00015156,2]
[393267920,1762408062293,-165.56067966,0.00015156,2]
[393267921,1762408064729,-281.68893878,0.00015156,2]
[393267922,1762408068056,-52.75038156,0.00015156,2]
[393267923,1762408068077,-134.50341844,0.00015156,2]
[393267924,1762408071911,-242.04612664,0.00015156,2]
[393267925,1762408074176,999.0,0.00015043,3]
[393267926,1762408076109,-123.45045492,0.00015156,2]
[393267927,1762408076131,-49.89745382,0.00015156,2]
[393267928,1762408091872,-395.50580309,0.00015156,2]
[393267929,1762408095044,-54.59674309,0.00015156,2]
[393267930,1762408095067,-129.97126634,0.00015156,2]
[393267931,1762408100047,-181.30200253,0.00015156,2]
[393267932,1762408101578,-188.72673113,0.00015156,2]
[393267933,1762408101601,-74.07049438,0.00015156,2]
[393267934,1762408103118,-301.038,0.00015156,2]
[393267935,1762408121790,-124.89150562,0.00015156,2]
[393267936,1762408121811,-82.54009676,0.00015156,2]
[393267937,1762408124568,-405.91963619,0.00015156,2]
[393267938,1762408126811,-11.54026705,0.00015156,2]
[393267939,1762408126836,-152.91208825,0.00015156,2]
[393267940,1762408131759,-316.14544581,0.00015156,2]
[393267941,1762408133428,-30.94246594,0.00015156,2]
[393267942,1762408133451,-232.81635999,0.00015156,2]
[393267943,1762408135704,-186.74251173,0.00015156,2]
[393267944,1762408142702,250.0,0.00015084,2]
[393267945,1762408144205,-259.25212382,0.00015155,2]
[393267946,1762408148001,-40.74787618,0.00015155,2]
[393267947,1762408148022,-80.44112828,0.00015156,2]
[393267948,1762408148044,-197.4031703,0.00015156,2]
[393267949,1762408150767,-180.24228509,0.00015156,2]
[393267950,1762408155286,166.66,0.00014349,2]
[393267951,1762408155479,166.66,0.00014651,2]
[393267952,1762408155964,166.66,0.00014953,2]
[393267953,1762408157218,-122.35454461,0.00015156,2]
[393267954,1762408157239,-111.93365539,0.00015156,2]
[393267955,1762408158813,-388.06634461,0.00015156,2]
[393267956,1762408158834,-44.5915436,0.00015156,2]
[393267957,1762408164205,-212.84692216,0.00015156,2]
[393267958,1762408165723,-195.0,0.00015156,2]
[393267959,1762408181870,-47.56153424,0.00015156,2]
[393267960,1762408181894,-111.31484197,0.00015156,2]
[393267961,1762408184693,-300.01246968,0.00015156,2]
[393267962,1762408187937,-88.67268835,0.00015156,2]
[393267963,1762408187960,-65.21900948,0.00015156,2]
[393267964,1762408189576,-218.29560636,0.00015156,2]
[393267965,1762408192311,-216.48538416,0.00015156,2]
[393267966,1762408192334,-20.00230826,0.00015156,2]
[393267967,1762408196012,-232.98771708,0.00015156,2]
[393267968,1762408211731,-247.00997466,0.00015156,2]
[393267969,1762408211755,-328.63598224,0.00015156,2]
[393267981,1762408231619,-171.36401776,0.00015156,2]
[393267982,1762408231630,-136.44698231,0.00015156,2]
[393267983,1762408231642,-363.55301769,0.00015156,2]
[393267984,1762408231653,-195.0,0.00015172,2]
[393267985,1762408231664,-250.0,0.00015172,2]
[393267986,1762408231675,-268.0,0.00015241,2]
[393267987,1762408231685,-166.66,0.00015255,2]
[393267988,1762408231696,-193.31971441,0.00015314,2]
[393267989,1762408231707,-893.73840764,0.00015323,2]
[393267990,1762408231718,-300.0,0.00015347,2]
[393267991,1762408231733,-1200.0,0.00015347,2]
[393267992,1762408231744,-300.0,0.00015347,2]
[393267994,1762408231756,-920.0,0.00015348,2]
[393267996,1762408231768,-300.0,0.00015348,2]
[393267998,1762408231779,-500.0,0.00015348,2]
[393268000,1762408231790,-500.0,0.00015348,2]
[393268001,1762408231801,-500.0,0.00015348,2]
[393268002,1762408231812,-500.0,0.00015348,2]
[393268005,1762408231823,-500.0,0.00015348,2]
[393268006,1762408231833,-373.34260501,0.00015348,2]
[393268007,1762408231844,-500.0,0.00015348,2]
[393268008,1762408231855,-500.0,0.00015348,2]
[393268009,1762408231866,-500.0,0.00015348,2]
[393268010,1762408231877,-500.0,0.00015348,2]
[393268011,1762408231888,-500.0,0.00015348,2]
[393268012,1762408231899,-500.0,0.00015348,2]
[393268015,1762408231913,-500.0,0.00015348,2]
[393268016,1762408231924,-500.0,0.00015348,2]
[393268017,1762408231940,-500.0,0.00015348,2]
[393268018,1762408231951,-500.0,0.00015348,2]
[393268019,1762408231963,-500.0,0.00015348,2]
[393268020,1762408231975,-500.0,0.00015348,2]
[393268021,1762408231986,-500.0,0.00015348,2]
[393268022,1762408231997,-500.0,0.00015348,2]
[393268023,1762408232010,-500.0,0.00015348,2]
[393268024,1762408232021,-396.23476904,0.00015348,2]
[393268025,1762408232032,-500.0,0.00015348,2]
[393268026,1762408232043,-500.0,0.00015348,2]
[393268027,1762408232054,-500.0,0.00015348,2]
[393268028,1762408232065,-500.0,0.00015348,2]
[393268029,1762408232075,-500.0,0.00015348,2]
[393268030,1762408232086,-500.0,0.00015348,2]
[393268031,1762408232097,-500.0,0.00015348,2]
[393268032,1762408232111,-500.0,0.00015348,2]
[393268033,1762408232123,-500.0,0.00015348,2]
[393268034,1762408232134,-500.0,0.00015348,2]
[393268035,1762408232146,-500.0,0.00015348,2]
[393268036,1762408232157,-350.0,0.00015348,2]
[393268037,1762408232168,-39944.35351664,0.0001535,2]
[393268038,1762408232179,-201.29705626,0.00015414,2]
[393268039,1762408232190,-504.6181,0.00015425,2]
[393268040,1762408232201,-200.0,0.0001545,2]
[393268041,1762408232212,-557.6,0.00015495,2]
[393268042,1762408232222,-1000.0,0.00015496,2]
[393268043,1762408232233,-1000.0,0.00015496,2]
[393268044,1762408232244,-1000.0,0.00015496,2]
[393268045,1762408232254,-500.0,0.00015497,2]
[393268046,1762408232268,-500.0,0.00015497,2]
[393268047,1762408232291,-6051.86541604,0.00015497,2]
[393268051,1762408237499,-1817.01184,0.00015497,2]
[393268052,1762408237555,-250.0,0.00015497,2]
[393268118,1762408239529,-1170.3795753,0.00015497,2]
[393268119,1762408239540,-623.85962557,0.00015497,2]
[393268120,1762408240036,-1.7e-07,0.00015497,2]
[393268121,1762408240062,-709.99999999,0.00015497,2]
[393268122,1762408240074,-992.00997522,0.00015497,2]
[393268144,1762408245776,-736.13703,0.0001534,2]
[393268145,1762408245785,-4992.30167826,0.00015497,2]
[393268146,1762408245795,-500.0,0.00015497,2]
[393268147,1762408245804,-500.0,0.00015497,2]
[393268148,1762408245814,-513.33825688,0.00015497,2]
[393268149,1762408245824,-500.0,0.00015497,2]
[393268150,1762408245833,-546.07955505,0.00015497,2]
[393268151,1762408245842,-504.82836893,0.00015497,2]
[393268152,1762408245851,-500.0,0.00015497,2]
[393268153,1762408245860,-631.36940064,0.00015497,2]
[393268154,1762408245869,-407.94571024,0.00015497,2]
[393268155,1762408245885,-92.05428976,0.00015497,2]
[393268156,1762408245894,-500.0,0.00015497,2]
[393268157,1762408245904,-204.23991961,0.00015498,2]
[393268158,1762408245913,-152.0,0.00015498,2]
[393268159,1762408245923,-152.0,0.00015498,2]
[393268160,1762408245935,-826.0,0.00015498,2]
[393268161,1762408245945,-826.0,0.00015498,2]
[393268162,1762408245954,-826.0,0.00015498,2]
[393268163,1762408245963,-826.0,0.00015498,2]
[393268164,1762408245973,-826.0,0.00015498,2]
[393268165,1762408245984,-826.0,0.00015498,2]
[393268166,1762408245993,-330.46935179,0.00015498,2]
[393268167,1762408246003,-152.0,0.00015498,2]
[393268168,1762408246016,-152.0,0.00015498,2]
[393268169,1762408246027,-152.0,0.00015498,2]
[393268170,1762408246036,-152.0,0.00015498,2]
[393268171,1762408246045,-388.7934094,0.00015498,2]
[393268172,1762408246054,-152.0,0.00015498,2]
[393268173,1762408246064,-189.21318543,0.00015498,2]
[393268174,1762408246073,-152.0,0.00015498,2]
[393268175,1762408246082,-152.0,0.00015498,2]
[393268176,1762408246091,-278.85153084,0.00015498,2]
[393268177,1762408246101,-152.0,0.00015498,2]
[393268178,1762408246110,-152.0,0.00015498,2]
[393268179,1762408246119,-166.66,0.00015558,2]
[393268180,1762408246129,-874.48804371,0.00015744,2]
[393268181,1762408246138,-447.49,0.00015766,2]
[393268182,1762408246148,-557.6,0.00015768,2]
[393268183,1762408246157,-166.66,0.0001586,2]
[393268184,1762408246167,-203.95503449,0.0001588,2]
[393268185,1762408246176,-26.16301134,0.000159,2]
[393268192,1762408263696,18000.0,0.00038568,120]
[393268193,1762408548313,-2901.302939,0.00015269,2]
[393268194,1762408555321,20679.0,0.00038568,30]
[393268195,1762408886080,150.0,0.00015123,2]
[393268196,1762408927529,500.0,0.00038575,120]
[393268197,1762408927760,500.0,0.00038575,120]
[393268198,1762408928000,308.64277139,0.00038575,120]
[393268199,1762409019894,514.9365516,0.00038575,30]
[393268200,1762409044150,1644.7576,0.00015413,2]
[393268201,1762409114285,2205.86,0.0001512,2]
[393268204,1762409241435,206.93,0.00015128,2]
[393268205,1762409422513,1000.0,0.0001516,2]
[393268216,1762409431777,-308.65553014,0.00015457,2]
[393268217,1762409431786,-195.0,0.00015472,2]
[393268218,1762409431796,-265.16223913,0.00015503,2]
[393268219,1762409431807,-446.45750058,0.00015503,2]
[393268220,1762409431819,-488.38026029,0.00015503,2]
[393268221,1762409431828,-151.0,0.00015504,2]
[393268222,1762409431837,-151.0,0.00015504,2]
[393268223,1762409431848,-261.24384501,0.00015504,2]
[393268224,1762409431857,-123.3240231,0.00015504,2]
[393268225,1762409431868,-27.6759769,0.00015504,2]
[393268226,1762409431878,-151.0,0.00015504,2]
[393268227,1762409431887,-151.0,0.00015504,2]
[393268228,1762409431896,-134.1382431,0.00015504,2]
[393268229,1762409431918,-47.12130163,0.00015504,2]
[393268230,1762409431927,-300.0,0.00015511,2]
[393268231,1762409431937,-300.0,0.00015511,2]
[393268232,1762409431946,-500.0,0.00015512,2]
[393268233,1762409431955,-500.0,0.00015512,2]
[393268234,1762409431965,-500.0,0.00015512,2]
[393268235,1762409431974,-253.54398816,0.00015512,2]
[393268236,1762409431983,-384.44882869,0.00015512,2]
[393268237,1762409431992,-500.0,0.00015512,2]
[393268238,1762409432001,-500.0,0.00015512,2]
[393268239,1762409432011,-272.26480062,0.00015512,2]
[393268240,1762409432020,-500.0,0.00015512,2]
[393268241,1762409432030,-500.0,0.00015512,2]
[393268242,1762409432039,-616.19989676,0.00015512,2]
[393268243,1762409432048,-500.0,0.00015512,2]
[393268244,1762409432058,-500.0,0.00015512,2]
[393268245,1762409432067,-500.0,0.00015512,2]
[393268247,1762409432077,-500.0,0.00015512,2]
[393268249,1762409432086,-500.0,0.00015512,2]
[393268251,1762409432095,-500.0,0.00015512,2]
[393268253,1762409432104,-500.0,0.00015512,2]
[393268256,1762409432366,-500.0,0.00015512,2]
[393268257,1762409432376,-500.0,0.00015512,2]
[393268258,1762409432386,-372.84548755,0.00015512,2]
[393268259,1762409432397,-127.15451245,0.00015512,2]
[393268260,1762409432407,-500.0,0.00015512,2]
[393268261,1762409432415,-401.89405836,0.00015512,2]
[393268262,1762409432425,-500.0,0.00015512,2]
[393268263,1762409432434,-500.0,0.00015512,2]
[393268264,1762409432443,-500.0,0.00015512,2]
[393268265,1762409432452,-500.0,0.00015512,2]
[393268266,1762409432461,-500.0,0.00015512,2]
[393268267,1762409432471,-104665.325527,0.00015513,2]
[393268268,1762409432484,-1075.1828569,0.00015513,2]
[393268269,1762409432493,-221.80400124,0.00015672,2]
[393268270,1762409432502,-613.44753,0.0001574,2]
[393268271,1762409432512,-893.73840764,0.00015792,2]
[393268272,1762409432521,-166.66,0.00015838,2]
[393268273,1762409432531,-500.0,0.0001589,2]
[393268274,1762409432541,-151.0,0.000159,2]
[393268275,1762409432551,-313.758928,0.00015985,2]
[393268276,1762409432560,-333.2266772,0.00015985,2]
[393268277,1762409432570,-500.0,0.00015985,2]
[393268278,1762409432579,-180.22595703,0.00015985,2]
[393268279,1762409432588,-500.0,0.00015985,2]
[393268280,1762409432598,-230.26616163,0.00015985,2]
[393268281,1762409432607,-2572.67,0.00015986,2]
[393268282,1762409432616,-150.0,0.00016053,2]
[393268283,1762409432626,-927.13,0.000161,2]
[393268284,1762409432638,-176.88,0.000161,2]
[393268285,1762409432647,-176.88,0.000161,2]
[393268286,1762409432656,-176.91,0.000161,2]
[393268287,1762409432666,-353.67,0.000161,2]
[393268288,1762409432675,-415.63,0.000161,2]
[393268289,1762409432687,-180.07,0.00016164,2]
[393268290,1762409432696,-549.09,0.00016164,2]
[393268291,1762409432707,-447.49,0.00016183,2]
[393268292,1762409432717,-179.58,0.000162,2]
[393268293,1762409432726,-169.01,0.000162,2]
[393268294,1762409432735,-176.88,0.000162,2]
[393268295,1762409432744,-169.01,0.000162,2]
[393268296,1762409432752,-353.48,0.000162,2]
[393268297,1762409432762,-169.01,0.000162,2]
[393268298,1762409432771,-200.0,0.00016205,2]
[393268299,1762409432780,-5959.48068973,0.0001622,2]
[393268300,1762409432789,-1000.0,0.0001622,2]
[393268301,1762409432798,-5000.0,0.0001623,2]
[393268302,1762409432807,-321.29,0.00016249,2]
[393268303,1762409432816,-212.30994127,0.00016254,2]
[393268304,1762409432825,-5483.7178151,0.00016256,2]
[393268305,1762409432835,-1363.34024643,0.00016278,2]
[393268306,1762409432881,-2124.8390369,0.00016278,2]
[393268307,1762409432891,-1419.16096311,0.0001632,2]
[393268308,1762409432906,-1057.8,0.0001632,2]
[393268320,1762409439753,-168.94960719,0.00016256,2]
[393268321,1762409439762,-899.48671546,0.0001632,2]
[393268322,1762409439979,-256.46953206,0.0001632,2]
[393268323,1762409439991,-186.25278937,0.0001632,2]
[393268324,1762409440000,-342.04721063,0.0001632,2]
[393268325,1762409440048,-3131.9679137,0.0001632,2]
[393268326,1762409440110,-345.15487567,0.0001632,2]
[393268328,1762409440120,-3724.87271483,0.0001632,2]
[393268362,1762409442784,-94.29728517,0.0001632,2]
[393268363,1762409442794,-3203.46916195,0.0001632,2]
[393268425,1762409446003,-615.70083805,0.0001632,2]
[393268426,1762409446013,-3819.17,0.0001632,2]
[393268427,1762409446022,-500.0,0.00016329,2]
[393268428,1762409446031,-500.0,0.00016329,2]
[393268429,1762409446041,-500.0,0.00016329,2]
[393268430,1762409446050,-514.83814224,0.00016329,2]
[393268431,1762409446059,-500.0,0.00016329,2]
[393268432,1762409446069,-500.0,0.00016329,2]
[393268433,1762409446078,-500.0,0.00016329,2]
[393268434,1762409446087,-515.94292169,0.00016329,2]
[393268435,1762409446096,-500.0,0.00016329,2]
[393268436,1762409446106,-266.938,0.00016329,2]
[393268437,1762409446115,-163.915331,0.0001633,2]
[393268438,1762409446124,-92500.40410238,0.0001633,2]
[393268439,1762409446135,-1186.10579435,0.0001633,2]
[393268440,1762409446146,-21408.46804593,0.0001633,2]
[393268441,1762409446215,-142.99479468,0.0001633,2]
[393268447,1762409505384,189.80531483,0.00038575,120]
[393268448,1762409524695,195.72456545,0.00038575,120]
[393268454,1762409863115,176.89,0.00012572,2]
[393268455,1762409926279,971.54,0.00013699,2]
[393268460,1762410096337,1000.0,0.00013764,2]
[393268461,1762410121611,151.0,0.00015385,2]
[393268462,1762410162131,755.96293867,0.00038573,30]
[393268463,1762410234482,200.0,0.00015148,2]
[393268464,1762410322509,1070.22,7.703e-05,2]
[393268465,1762410322932,1070.22,8.093e-05,2]
[393268466,1762410322977,1070.22,8.482e-05,2]
[393268467,1762410323210,1070.22,8.872e-05,2]
[393268468,1762410323420,1070.22,9.261e-05,2]
[393268469,1762410323628,1070.22,9.651e-05,2]
[393268470,1762410323847,1070.22,0.0001004,2]
[393268471,1762410324051,1070.22,0.0001043,2]
[393268472,1762410324455,1070.22,0.00010819,2]
[393268473,1762410324818,17.03,0.00011209,2]
[393268474,1762410324853,1053.19,0.00011209,2]
[393268475,1762410325188,1070.22,0.00011599,2]
[393268476,1762410325232,1070.22,0.00011988,2]
[393268477,1762410325280,1070.22,0.00012378,2]
[393268478,1762410325460,1070.22,0.00012767,2]
[393268479,1762410325653,1070.22,0.00013157,2]
[393268480,1762410325857,1070.22,0.00013546,2]
[393268481,1762410326050,1070.22,0.00013936,2]
[393268482,1762410326247,1070.22,0.00014325,2]
[393268483,1762410326725,-1070.22,0.00014715,2]
[393268484,1762410326760,-1070.22,0.00015104,2]
[393268485,1762410353963,200.0,0.00015108,2]
[393268486,1762410372176,11118.45240534,0.00038573,120]
[393268488,1762410453062,218.67,0.00015099,2]
[393268497,1762410521961,-164.61476327,0.00014999,2]
[393268498,1762410524539,-303.92547475,0.00014999,2]
[393268499,1762410527149,-216.1147564,0.00014999,2]
[393268500,1762410532495,-479.94565248,0.00014999,2]
[393268501,1762410534925,-151.0,0.00014999,2]
[393268502,1762410536950,-181.30636178,0.00014999,2]
[393268503,1762410540875,-288.03560919,0.00014999,2]
[393268504,1762410543105,-299.54298811,0.00014999,2]
[393268506,1762410548780,-151.0,0.00014999,2]
[393268507,1762410550878,-207.39304278,0.00014999,2]
[393268508,1762410566794,-333.61,0.00014999,2]
[393268510,1762410572064,-231.85715541,0.00014999,2]
[393268511,1762410575244,-184.34202399,0.00014999,2]
[393268512,1762410580363,-173.29557802,0.00014999,2]
[393268513,1762410597404,-166.39,0.00014999,2]
[393268514,1762410598916,-151.0,0.00014999,2]
[393268515,1762410601063,554.14,0.00038584,120]
[393268516,1762410604718,-444.03740239,0.00014999,2]
[393268517,1762410606799,-320.573624,0.00014999,2]
[393268518,1762410609489,-10.29639192,0.00014999,2]
[393268519,1762410609518,-239.70360808,0.00014999,2]
[393268520,1762410611025,-60.29639192,0.00014999,2]
[393268521,1762410611048,-90.70360808,0.00014999,2]
[393268522,1762410626797,-156.47157791,0.000149,2]
[393268523,1762410626819,-63.51338832,0.00014948,2]
[393268524,1762410629194,-131.48661168,0.00014948,2]
[393268525,1762410629217,-140.0024606,0.00014997,2]
[393268531,1762410631888,-10.9975394,0.00014997,2]
[393268532,1762410631898,-477.23479453,0.00014999,2]
[393268533,1762410631910,-466.0,0.00014999,2]
[393268534,1762410631922,-166.06159739,0.00014999,2]
[393268535,1762410631931,-300.0,0.00014999,2]
[393268536,1762410631942,-345.18725474,0.00015,2]
[393268537,1762410631951,-149.05886754,0.00015,3]
[393268538,1762410632275,-12581.97924667,0.00015,3]
[393268541,1762410632286,-27269.00188579,0.00015,3]
[393268542,1762410632296,-1574.28,0.00015076,2]
[393268544,1762410632305,-243.7,0.00015112,2]
[393268546,1762410632314,-510.0,0.00015707,2]
[393268548,1762410632327,-2069.31,0.00015715,2]
[393268550,1762410632336,-500.0,0.00015726,2]
[393268552,1762410632345,-331.82530854,0.00015807,2]
[393268553,1762410632356,-2202.1327441,0.00015882,2]
[393268555,1762410632365,-982.0,0.00015888,2]
[393268557,1762410632375,-500.0,0.0001589,2]
[393268559,1762410632384,-300.0,0.000159,5]
[393268562,1762410632394,-477.03,0.000159,2]
[393268564,1762410632403,-477.03,0.000159,2]
[393268565,1762410632412,-982.0,0.00015916,2]
[393268568,1762410632422,-156.4715779,0.00015941,2]
[393268569,1762410632431,-243.7,0.00015951,2]
[393268571,1762410632440,-893.73840764,0.00015958,2]
[393268573,1762410632449,-300.0,0.00015999,2]
[393268575,1762410632458,-961.92,0.00016,2]
[393268577,1762410632467,-701.29070359,0.00016041,2]
[393268580,1762410632479,-280.70929641,0.00016041,2]
[393268582,1762410632488,-500.0,0.00016042,2]